Cogmind - Beta 11.1 @@@ ROGUE MODE // 2022.05.09 @ 20:23:36 Player: Haldron Result: Self-destructed Performance ------------- Evolutions (3) 1500 Regions Visited (6) 1200 Robots Destroyed (94) 470 Value Destroyed (2008) 2008 Prototype IDs (4) 80 Alien Tech Used (0) 0 Bonus (252) 252 TOTAL SCORE: 5510 Bonus ------- High Alert Combat Kills 119 Follower Combat Kills 133 Cogmind --------- Core Integrity 617/700 Matter 300/300 Energy 59/100 System Corruption 4% Temperature Warm (190) Movement Core (800) Ox15 Location -7/Factory Parts ------- > --- POWER (1) -------- (None) > --- PROPULSION (2) --- (None) > --- UTILITY (8) ------ High-capacity Storage Unit Advanced Visual Processing Unit ECM Suite > --- WEAPON (2) ------- Beam Rifle Pulse Rifle > --- INVENTORY (20) --- Ion Engine Improved Treads Improved Flight Unit Improved Flight Unit Improved Flight Unit Improved Flight Unit Improved Flight Unit Experimental Sensor Array Light Armor Plating Medium Armor Plating Authchip [R/Combat] Authchip [Device] Recalibrator Drone Bay (2/2) Improved Lightning Gun Pulse Rifle Improved Grenade Launcher Improved Grenade Launcher Plasma Cutter Heavy Hammer Peak State ------------ > --- POWER ------------ Improved Ion Engine > --- PROPULSION ------- Improved Treads Improved Flight Unit > --- UTILITY ---------- Heat Sink Heat Sink High-capacity Storage Unit Hardened Light Armor Plating > --- WEAPON ----------- Improved Medium Laser Improved Medium Laser > --- INVENTORY -------- Ion Engine Ion Engine Improved Ion Engine Light Treads Improved Treads Heat Sink Experimental Sensor Array Signal Interpreter ECM Suite Hardened Light Armor Plating Heavy EM Pulse Gun Beam Rifle Improved Medium Laser Pulse Rifle Pulse Rifle Pulse Rifle Improved Grenade Launcher Improved Grenade Launcher Improved Grenade Launcher Hammer [Rating: 22] Favorites ----------- Power Ion Engine Engine Ion Engine Propulsion Light Treads Treads Light Treads Leg Aluminum Leg Wheel Wheel Flight Unit Improved Flight Unit Utility High-capacity Storage Unit Device Heat Sink Storage High-capacity Storage Unit Processor Signal Interpreter Protection Hardened Light Armor Plating Weapon Pulse Rifle Energy Gun Pulse Rifle Ballistic Gun Heavy Assault Rifle Launcher Grenade Launcher Impact Weapon Flail Build | -11 -10 -10 -9 -9 -9 -7 ------- Run | Scr Mat Min Mat Sto Rec Fac Slots Evolved 6 | . . . 2 . . 4 Power . | . . . . . . . Propulsion . | . . . . . . . Utility 6 | . . . 2 . . 4 Weapon . | . . . . . . . Parts Attached 99 | 7 12 3 35 25 15 2 Power 8 | 1 . 1 4 1 1 . Engine 8 | 1 . 1 4 1 1 . Core . | . . . . . . . Reactor . | . . . . . . . Propulsion 25 | 2 2 . 10 5 6 . Treads 20 | 2 2 . 7 3 6 . Leg 1 | . . . . 1 . . Wheel 2 | . . . 1 1 . . Hover . | . . . . . . . Flight 2 | . . . 2 . . . Utility 25 | 2 2 2 10 4 5 . Device 12 | 1 . 1 5 2 3 . Storage 3 | 1 2 . . . . . Processor 2 | . . . 1 . 1 . Hackware . | . . . . . . . Protection 8 | . . 1 4 2 1 . Artifact . | . . . . . . . Weapon 41 | 2 8 . 11 15 3 2 Energy Gun 23 | 2 5 . 7 7 . 2 Energy Cannon . | . . . . . . . Ballistic Gun 4 | . . . 2 2 . . Ballistic Cannon . | . . . . . . . Launcher 5 | . 2 . 2 1 . . Special Weapon . | . . . . . . . Impact Weapon 9 | . 1 . . 5 3 . Slashing Weapon . | . . . . . . . Piercing Weapon . | . . . . . . . Special Melee Weapon . | . . . . . . . Unidentified Prototypes 4 | . . 1 2 1 . . Parts Lost 30 | . . . 13 8 6 3 Power 5 | . . . 2 2 . 1 Propulsion 8 | . . . 2 3 2 1 Utility 9 | . . . 4 1 3 1 Weapon 8 | . . . 5 2 1 . Highest Loss Streak 6 | . . . 6 2 6 3 To Critical Strikes . | . . . . . . . Average Slot Usage (%) 89 | . 100 100 95 96 79 66 Engine 11 | . 14 14 10 10 11 6 Treads 19 | . 28 28 19 12 20 14 Wheel 2 | . . . 1 8 . . Device 10 | . 14 8 17 8 6 7 Storage 11 | . 14 14 11 11 11 7 Processor 6 | . . . 3 11 7 7 Protection 8 | . . 5 10 10 9 6 Energy Gun 13 | . 25 28 18 17 2 11 Ballistic Gun 1 | . . . 3 3 1 . Impact Weapon 3 | . 1 . . 1 8 1 Naked Turns . | . . . . . . . Heaviest Build 62 | 15 52 54 62 58 57 58 Greatest Support 46 | 40 40 40 46 40 46 43 Greatest Overweight (x) 5 | 2 1 1 5 5 5 1 Average Overweight (x) 1 | . . 1 1 4 1 1 Largest Inventory Capacity 20 | 8 20 20 20 20 20 20 Average Capacity 19 | 7 15 20 20 20 20 20 Most Carried 20 | 3 17 19 20 20 20 19 Average Carried 18 | 1 11 18 19 19 19 18 Final Capacity 20 | 8 20 20 20 20 20 20 Final Carried 20 | 3 17 18 19 20 18 20 Class Distribution -------------------- 71% | Mutant 19% | Commander-Mutant 9% | Scavenger-Mutant Dominant Class ---------------- Mutant | -10/Materials Mutant | -10/Mines Mutant | -9/Materials Mutant | -9/Storage Commander-Mutant | -9/Recycling Mutant | -7/Factory Resources | -11 -10 -10 -9 -9 -9 -7 ----------- Run | Scr Mat Min Mat Sto Rec Fac Matter Collected 1567 | 270 167 41 422 355 270 42 Remotely . | . . . . . . . Salvage Created 3012 | 128 335 56 1009 905 477 102 Parts 165 | 14 15 4 77 44 8 3 Haulers Intercepted 5 | . 1 . 2 2 . . Recyclers Shooed 6 | . . . . 4 2 . Parts Field Recycled . | . . . . . . . Retrieved Matter . | . . . . . . . Parts Self-Destructed . | . . . . . . . Prevented . | . . . . . . . Kills | -11 -10 -10 -9 -9 -9 -7 ------- Run | Scr Mat Min Mat Sto Rec Fac Combat Hostiles Destroyed 68 | . 7 3 28 21 7 2 Melee 1 | . . . . . 1 . Guns 54 | . 4 3 23 21 1 2 AOE 6 | . 3 . 3 . . . Classes Destroyed 14 | 3 5 . 3 1 1 1 Worker 5 | 2 . . 2 1 . . Builder 2 | . . . 2 . . . Tunneler 2 | 2 . . . . . . Hauler 5 | . 1 . 2 2 . . Recycler 7 | 1 . . . . 6 . Operator 1 | . 1 . . . . . Drone 7 | . . . . . 7 . Watcher 4 | . 3 . . 1 . . Swarmer 24 | . 3 3 14 4 . . Grunt 21 | . 4 . 6 11 . . Brawler 1 | . . . . 1 . . Duelist 1 | . . . 1 . . . Sentry 13 | . . . 7 5 . 1 Programmer 1 | . . . . . . 1 Best Kill Streak 7 | 2 5 3 7 5 2 1 Combat Bots Only 6 | . 5 3 6 5 2 1 Max Kills in Single Turn 3 | 2 3 2 2 1 1 1 Gunslinging 1 | . . 1 . . . . Exploded 3 | . 3 . 1 . . . Melee 1 | . . . . . 1 . Uniques/NPCs Destroyed . | . . . . . . . Combat | -11 -10 -10 -9 -9 -9 -7 -------- Run | Scr Mat Min Mat Sto Rec Fac Damage Taken 4099 | . 217 70 1831 1045 601 335 Core 509 | . 30 . 182 145 69 83 Absorbed by Shields 22 | . . . . . 3 19 Core Remaining (%) 63 | 100 . 88 . . 1 . Volleys Fired 204 | 7 24 4 87 71 2 9 Largest 2 | 2 2 2 2 2 2 2 Hottest 126 | 100 100 90 119 126 86 119 Shots Fired 391 | 14 46 9 157 140 7 18 Gun 383 | 14 43 9 153 139 7 18 Cannon . | . . . . . . . Launcher 8 | . 3 . 4 1 . . Special . | . . . . . . . Kinetic 66 | . . . 22 41 3 . Thermal 258 | 14 16 . 108 98 4 18 Explosive 8 | . 3 . 4 1 . . Electromagnetic 59 | . 27 9 23 . . . Robot Hit Streak 24 | 9 5 3 17 24 5 3 Robot Miss Streak 5 | 3 2 2 5 3 3 3 Penetration Max . | . . . . . . . Secondary Targets 10 | . . 1 6 3 . . Max Gunslinging Chain 1 | . . 1 1 1 . . Shots Hit Robots 263 | 10 27 4 102 96 14 10 Core Hits 111 | 6 17 3 42 35 5 3 Critical Kills . | . . . . . . . Critical Parts Destroyed 1 | . . . . 1 . . Critical Strikes 16 | . 3 . 6 6 . 1 Burn 12 | . 1 . 5 5 . 1 Corrupt 3 | . 2 . 1 . . . Smash 1 | . . . . 1 . . Melee Attacks 60 | . 8 . . 22 30 . Impact 60 | . 8 . . 22 30 . Slashing . | . . . . . . . Piercing . | . . . . . . . Sneak Attacks 10 | . 1 . . . 9 . Combat Hostiles 1 | . . . . . 1 . Follow-up Attacks . | . . . . . . . Damage Inflicted 5421 | 136 671 67 1791 1711 874 171 Guns 4030 | 136 406 54 1650 1582 31 171 Cannons . | . . . . . . . Explosions 434 | . 217 . 141 76 . . Melee 937 | . 48 . . 53 836 . Ramming 20 | . . 13 . . 7 . Kinetic 522 | . . . 186 323 13 . Thermal 2988 | 136 171 . 1233 1259 18 171 Explosive 386 | . 169 . 141 76 . . Electromagnetic 568 | . 283 54 231 . . . Impact 937 | . 48 . . 53 836 . Slashing . | . . . . . . . Piercing . | . . . . . . . Highest Corruption 19 | . 4 4 . 3 19 4 Average Corruption 7 | . 2 4 . 3 9 2 Corruption Purged . | . . . . . . . Corruption Blocked . | . . . . . . . Effects 116 | . 18 5 . 1 92 . Message Errors 34 | . 8 1 . . 25 . Matter Fused 26 | . 4 . . . 22 . Heat Flow Errors 15 | . 4 1 . . 10 . Energy Discharges 10 | . 1 1 . 1 7 . Parts Rejected 3 | . . . . . 3 . Data Loss (minor) 13 | . . . . . 13 . Data Loss (major) 4 | . . 1 . . 3 . Misfires 5 | . 1 1 . . 3 . Alerts 4 | . . . . . 4 . Misdirections 2 | . . . . . 2 . Overload Shots . | . . . . . . . Overflow Damage 450 | . 42 . . 53 355 . Projectiles . | . . . . . . . Explosions 42 | . 42 . . . . . Melee 408 | . . . . 53 355 . Knockbacks 2 | . . . . . 2 . Impact 2 | . . . . . 2 . Kinetic . | . . . . . . . Secondary . | . . . . . . . Self-Inflicted Damage 49 | . 25 . . 24 . . Shots 2 | . 1 . . 1 . . Rammed 3 | . . 2 . . 1 . Targets Rammed 3 | . . 2 . . 1 . Kicked . | . . . . . . . Crushed . | . . . . . . . Highest Temperature 374 | 78 273 219 374 240 260 190 Average Temperature 86 | 36 89 85 103 68 99 91 Received Heat Transfer 1142 | . 87 . 645 375 . 35 Effects 1 | . . . 1 . . . Interference 1 | . . . 1 . . . Siege Activations . | . . . . . . . Robots Corrupted . | . . . . . . . Combat Hostiles . | . . . . . . . Parts Fried 17 | . 4 1 . . 12 . Impact Corruptions 18 | . . . . 2 16 . Robots Melted 2 | . . . 2 . . . Combat Hostiles 2 | . . . 2 . . . Parts Melted 19 | . 1 . 11 4 . 3 Heat Transferred 7561 | 407 494 . 3071 3108 37 444 Parts Sabotaged . | . . . . . . . Parts Stolen . | . . . . . . . Parts Stripped . | . . . . . . . Power Chain Reactions 1 | . 1 . . . . . Missiles Intercepted . | . . . . . . . Alert | -11 -10 -10 -9 -9 -9 -7 ------- Run | Scr Mat Min Mat Sto Rec Fac Peak Influence 1232 | 25 297 145 484 281 758 1232 Initial 1217 | . 16 60 56 173 80 1217 Average 249 | 9 134 70 211 124 302 1202 Maximum Alert Level 4 | . 1 . 2 1 3 4 Low Security (%) 63 | 100 88 100 52 85 50 . Level 1 13 | . 11 . 34 14 1 . Level 2 18 | . . . 13 . 45 . Level 3 . | . . . . . 2 . Level 4 4 | . . . . . . 100 Level 5 . | . . . . . . . High Security . | . . . . . . . Max Security . | . . . . . . . Squads Dispatched 9 | . 1 . 2 5 . 1 Investigation 2 | . . . 1 1 . . Extermination 1 | . . . . . . 1 Reinforcement 3 | . 1 . . 2 . . Assault 3 | . . . 1 2 . . Garrison . | . . . . . . . Intercept . | . . . . . . . Searches Triggered . | . . . . . . . Construction Impeded . | . . . . . . . Haulers Reinforced . | . . . . . . . Active Scanning Responses . | . . . . . . . Cargo Convoy Interrupts . | . . . . . . . Stealth | -11 -10 -10 -9 -9 -9 -7 --------- Run | Scr Mat Min Mat Sto Rec Fac Distress Signals 6 | . . . 5 1 . . Communications Jammed . | . . . . . . . Distress Signals . | . . . . . . . Times Spotted 200 | . 16 4 44 33 101 2 Peak Tracking Total 7 | . 6 3 7 6 7 1 Tactical Retreats 6 | . . 1 1 4 . . Traps | -11 -10 -10 -9 -9 -9 -7 ------- Run | Scr Mat Min Mat Sto Rec Fac Traps Triggered 6 | . 2 . 2 2 . . Indirectly . | . . . . . . . Trap Hack Attempts . | . . . . . . . Triggered . | . . . . . . . Disarmed . | . . . . . . . Reprogrammed . | . . . . . . . Reused . | . . . . . . . Traps Extracted . | . . . . . . . Installed . | . . . . . . . Triggered . | . . . . . . . Machines | -11 -10 -10 -9 -9 -9 -7 ---------- Run | Scr Mat Min Mat Sto Rec Fac Machines Disabled 11 | . 2 1 4 1 3 . Max in Single Turn 2 | . 1 1 2 1 1 . Machines Sabotaged . | . . . . . . . Garrisons Compromised . | . . . . . . . Overloaded Fab Kills . | . . . . . . . Hacking | -11 -10 -10 -9 -9 -9 -7 --------- Run | Scr Mat Min Mat Sto Rec Fac Machines Accessed 24 | . 6 . 4 9 5 . Terminals 22 | . 6 . 2 9 5 . Fabricators . | . . . . . . . Repair Stations 1 | . . . 1 . . . Recycling Units . | . . . . . . . Scanalyzers 1 | . . . 1 . . . Garrison Access . | . . . . . . . Total Hacks 60 | . 12 . 13 24 11 . Successful 24 | . 5 . 4 10 5 . Failed 36 | . 7 . 9 14 6 . Catastrophic 8 | . 2 . 3 . 3 . Database Lockouts . | . . . . . . . Manual 22 | . 6 . 2 11 3 . Terminals 52 | . 12 . 5 24 11 . Fabricators . | . . . . . . . Repair Stations 5 | . . . 5 . . . Recycling Units . | . . . . . . . Scanalyzers 3 | . . . 3 . . . Garrison Access . | . . . . . . . Terminal Hacks 19 | . 4 . 1 9 5 . Robot Schematic 1 | . . . . . 1 . Open Door 4 | . . . . 4 . . Terminal Index 2 | . 1 . . 1 . . Alert Level 2 | . . . . . 2 . Unreport Threat 2 | . . . . 2 . . Locate Traps 3 | . 2 . . 1 . . Surveillance Status 1 | . . . . . 1 . Zone Layout 4 | . 1 . 1 1 1 . Fabricator Hacks . | . . . . . . . Repair Station Hacks 2 | . . . 2 . . . Scan Component 2 | . . . 2 . . . Recycling Unit Hacks . | . . . . . . . Scanalyzer 1 | . . . 1 . . . Insert Component 1 | . . . 1 . . . Garrison Access Hacks . | . . . . . . . Unauthorized Hacks 2 | . 1 . . 1 . . Terminals 2 | . 1 . . 1 . . Operators 2 | . 1 . . 1 . . Fabricators . | . . . . . . . Repair Stations . | . . . . . . . Recycling Units . | . . . . . . . Scanalyzers . | . . . . . . . Garrison Access . | . . . . . . . Data Cores Recovered . | . . . . . . . Used . | . . . . . . . Hacking Detections 23 | . 6 . 4 8 5 . Full Trace Events 4 | . . . 2 2 . . Feedback Events . | . . . . . . . Feedback Blocked . | . . . . . . . Robot Schematics Acquired 1 | . . . . . 1 . Robots Built . | . . . . . . . Authchips . | . . . . . . . Time . | . . . . . . . Total Robot Build Rating . | . . . . . . . Part Schematics Acquired . | . . . . . . . Parts Built . | . . . . . . . Authchips . | . . . . . . . Time . | . . . . . . . Total Part Build Rating . | . . . . . . . Parts Repaired . | . . . . . . . Time . | . . . . . . . Parts Recycled . | . . . . . . . Recycled Matter . | . . . . . . . Retrieved Matter . | . . . . . . . Retrieved Components . | . . . . . . . Parts Scanalyzed 1 | . . . 1 . . . Part Schematics Acquired . | . . . . . . . Parts Damaged . | . . . . . . . Bothacking | -11 -10 -10 -9 -9 -9 -7 ------------ Run | Scr Mat Min Mat Sto Rec Fac Used RIF Installer . | . . . . . . . Robots Hacked . | . . . . . . . Non-combat . | . . . . . . . Combat . | . . . . . . . Robot Hacks Applied . | . . . . . . . Relay Couplers Released . | . . . . . . . Fabnet Peak Effective % . | . . . . . . . Robots Rewired 13 | . . . . . 13 . Allies Hacked . | . . . . . . . Hacks Repelled . | . . . . . . . Allies | -11 -10 -10 -9 -9 -9 -7 -------- Run | Scr Mat Min Mat Sto Rec Fac Total Allies 15 | . . . . 2 13 . Largest Group 13 | . . . . 2 13 4 Highest-Rated Group 196 | . . . . 62 196 73 Highest-Rated Ally 31 | . . . . 31 27 27 Total Orders 29 | . . . . . 29 . STAY 18 | . . . . . 18 . ROAM 1 | . . . . . 1 . FOLLOW 3 | . . . . . 3 . TUNNEL 2 | . . . . . 2 . PICKUP 5 | . . . . . 5 . Ally Attacks 134 | . . . . 17 110 7 Total Damage 1724 | . . . . 296 1253 175 Kills 38 | . . . . 5 33 . Allies Corrupted 1 | . . . . 1 . . Allies Melted . | . . . . . . . Intel | -11 -10 -10 -9 -9 -9 -7 ------- Run | Scr Mat Min Mat Sto Rec Fac Robot Analysis Total . | . . . . . . . Derelict Logs Recovered . | . . . . . . . Drone Launches . | . . . . . . . Drone Recoveries . | . . . . . . . Exploration | -11 -10 -10 -9 -9 -9 -7 ------------- Run | Scr Mat Min Mat Sto Rec Fac Turns Passed 8860 | 121 1146 364 2100 1748 2995 386 Spaces Moved 3337 | 58 526 123 742 721 1023 144 Core 7 | 7 . . . . . . Treads 2480 | 51 526 123 596 43 997 144 Legs 62 | . . . . 36 26 . Wheels 788 | . . . 146 642 . . Hover . | . . . . . . . Flight . | . . . . . . . Fastest Speed 50 | 50 160 240 155 140 240 240 Average Speed 216 | 151 190 240 231 176 246 240 Slowest Speed 470 | 160 240 240 320 470 470 240 Overloaded Moves . | . . . . . . . Propulsion Burnouts . | . . . . . . . Robots Hopped . | . . . . . . . Cave-ins Triggered 2 | . . . . . 2 . Exploration Rate (%) 49 | 5 93 17 57 68 99 4 Regions Visited 6 Branch Regions 3 Pre-discovered Areas 1 | . . . . 1 . . Known Exits Taken 3 | . . . 1 1 1 . Unknown Exits Taken 3 | 1 1 1 . . . . Scrap Searched . | . . . . . . . Spaces Dug 9 | . 1 . . 6 2 . Terrain Destroyed 88 | . 27 . 44 15 2 . Melee 9 | . 1 . . 6 2 . Projectile . | . . . . . . . AOE 79 | . 26 . 44 9 . . Terrain Rammed . | . . . . . . . Walls Destroyed . | . . . . . . . Machines Disabled . | . . . . . . . Actions | -11 -10 -10 -9 -9 -9 -7 --------- Run | Scr Mat Min Mat Sto Rec Fac Total 4467 | 74 606 181 971 1021 1448 166 Wait 605 | . 19 47 70 172 289 8 Move 3330 | 57 525 123 741 720 1020 144 Hop . | . . . . . . . Pick Up 55 | 3 14 2 22 6 6 2 Fast Attach 28 | 7 . . 7 5 9 . Attach 21 | . . . 12 5 3 1 Detach 3 | . . . . 1 1 1 Swap 50 | . 12 3 16 15 3 1 Drop 33 | . 4 1 16 4 8 . Fire 204 | 7 24 4 87 71 2 9 Melee 60 | . 8 . . 22 30 . Ram . | . . . . . . . Kick . | . . . . . . . Crush 2 | . . 1 . . 1 . Escape Stasis 2 | . . . . . 2 . Rewire 74 | . . . . . 74 . Trap . | . . . . . . . Miscellaneous . | . . . . . . . Route ------- -11/Scrapyard -10/Materials (discovered 5 exits: *Mat x3 / [*Min x2]) -10/Mines -9/Materials (discovered 4 exits: *Mat x2 / *Min / *Sto) -9/Storage -9/Recycling -7/Factory (discovered 1 exit: [*Fac]) History --------- Turn | Location | Event 51 | -11/Scrapyard | Discovered new exit (range 15) 122 | -11/Scrapyard | Entered Materials 310 | -10/Materials | Discovered new exit (range 15) 313 | -10/Materials | Build established: Mutant 502 | -10/Materials | Discovered new exit (range 14) 534 | -10/Materials | Discovered new exit (range 12) 806 | -10/Materials | Discovered new exit (range 10) 917 | -10/Materials | Discovered new exit (range 8) 1268 | -10/Materials | Entered Mines 1320 | -10/Mines | Found a damaged Exp. Sensor Array with a note attached 1325 | -10/Mines | Found Prototype Device 1408 | -10/Mines | Assembled infested the area 1422 | -10/Mines | Identified Exp. Sensor Array 1579 | -10/Mines | Discovered new exit (range 5) 1632 | -10/Mines | Entered Materials 1632 | -9/Materials | Evolved 2 slots: Utility x2 1831 | -9/Materials | Lost 6 parts (1p2u3w) 2451 | -9/Materials | Discovered new exit (range 9) 2523 | -9/Materials | Discovered new exit (range 7) 3105 | -9/Materials | Discovered new exit (range 9) 3125 | -9/Materials | Identified exit to Materials 3224 | -9/Materials | Lost 3 parts (1p2n) 3529 | -9/Materials | Discovered new exit (range 13) 3546 | -9/Materials | Identified exit to Mines 3632 | -9/Materials | First assault squad dispatched 3730 | -9/Materials | Identified exit to Storage 3732 | -9/Materials | Entered Storage 4051 | -9/Storage | Core integrity fell below 50% 4342 | -9/Storage | Build established: Scavenger-Mutant 4679 | -9/Storage | Build established: Mutant 5103 | -9/Storage | Learned location of Armory (-4) 5379 | -9/Storage | Met a pair of Derelict thieves 5421 | -9/Storage | Used back door to open Recycling access 5421 | -9/Storage | Discovered new exit (range 5) 5435 | -9/Storage | Identified exit to Recycling 5480 | -9/Storage | Entered Recycling 5481 | -9/Recycling | Core integrity fell below 20% 5525 | -9/Recycling | Spotter reported a threat 5544 | -9/Recycling | Spotter reported a threat 5568 | -9/Recycling | Spotter reported a threat 5591 | -9/Recycling | Spotter reported a threat 5602 | -9/Recycling | Spotter reported a threat 5648 | -9/Recycling | Spotter reported a threat 5664 | -9/Recycling | Spotter reported a threat 5668 | -9/Recycling | Spotter reported a threat 5668 | -9/Recycling | Spotter reported a threat 5676 | -9/Recycling | Spotter reported a threat 5686 | -9/Recycling | Spotter reported a threat 5691 | -9/Recycling | Spotter reported a threat 5701 | -9/Recycling | Spotter reported a threat 5717 | -9/Recycling | Spotter reported a threat 5721 | -9/Recycling | Spotter reported a threat 5721 | -9/Recycling | Spotter reported a threat 5770 | -9/Recycling | Spotter reported a threat 5774 | -9/Recycling | Spotter reported a threat 5795 | -9/Recycling | Spotter reported a threat 5797 | -9/Recycling | Spotter reported a threat 5801 | -9/Recycling | Spotter reported a threat 5818 | -9/Recycling | Spotter reported a threat 5823 | -9/Recycling | Spotter reported a threat 5829 | -9/Recycling | Spotter reported a threat 5843 | -9/Recycling | Spotter reported a threat 5850 | -9/Recycling | Spotter reported a threat 5851 | -9/Recycling | Spotter reported a threat 5854 | -9/Recycling | Spotter reported a threat 5871 | -9/Recycling | Spotter reported a threat 5885 | -9/Recycling | Spotter reported a threat 5896 | -9/Recycling | Spotter reported a threat 5904 | -9/Recycling | Spotter reported a threat 5907 | -9/Recycling | Spotter reported a threat 5919 | -9/Recycling | Spotter reported a threat 5946 | -9/Recycling | Spotter reported a threat 5949 | -9/Recycling | Spotter reported a threat 5957 | -9/Recycling | Spotter reported a threat 5961 | -9/Recycling | Spotter reported a threat 5999 | -9/Recycling | Spotter reported a threat 6011 | -9/Recycling | Spotter reported a threat 6012 | -9/Recycling | Spotter reported a threat 6014 | -9/Recycling | Spotter reported a threat 6023 | -9/Recycling | Spotter reported a threat 6031 | -9/Recycling | Spotter reported a threat 6037 | -9/Recycling | Spotter reported a threat 6052 | -9/Recycling | Spotter reported a threat 6064 | -9/Recycling | Spotter reported a threat 6067 | -9/Recycling | Spotter reported a threat 6076 | -9/Recycling | Spotter reported a threat 6088 | -9/Recycling | Spotter reported a threat 6090 | -9/Recycling | Spotter reported a threat 6129 | -9/Recycling | Spotter reported a threat 6135 | -9/Recycling | Spotter reported a threat 6141 | -9/Recycling | Spotter reported a threat 6143 | -9/Recycling | Spotter reported a threat 6196 | -9/Recycling | Spotter reported a threat 6243 | -9/Recycling | Spotter reported a threat 6248 | -9/Recycling | Spotter reported a threat 6280 | -9/Recycling | Discovered new exit (range 16) 6289 | -9/Recycling | Spotter reported a threat 6323 | -9/Recycling | Spotter reported a threat 6347 | -9/Recycling | Identified exit to Factory 6354 | -9/Recycling | Spotter reported a threat 6392 | -9/Recycling | Spotter reported a threat 6429 | -9/Recycling | Spotter reported a threat 6434 | -9/Recycling | Spotter reported a threat 6475 | -9/Recycling | Spotter reported a threat 6482 | -9/Recycling | Spotter reported a threat 6484 | -9/Recycling | Spotter reported a threat 6485 | -9/Recycling | Spotter reported a threat 6487 | -9/Recycling | Spotter reported a threat 6533 | -9/Recycling | Spotter reported a threat 6535 | -9/Recycling | Spotter reported a threat 6537 | -9/Recycling | Spotter reported a threat 6538 | -9/Recycling | Spotter reported a threat 6542 | -9/Recycling | Spotter reported a threat 6548 | -9/Recycling | Spotter reported a threat 6569 | -9/Recycling | Spotter reported a threat 6586 | -9/Recycling | Spotter reported a threat 6590 | -9/Recycling | Spotter reported a threat 6591 | -9/Recycling | Spotter reported a threat 6595 | -9/Recycling | Spotter reported a threat 6600 | -9/Recycling | Spotter reported a threat 6623 | -9/Recycling | Spotter reported a threat 6643 | -9/Recycling | Spotter reported a threat 6648 | -9/Recycling | Spotter reported a threat 6648 | -9/Recycling | Spotter reported a threat 6663 | -9/Recycling | Spotter reported a threat 6664 | -9/Recycling | Spotter reported a threat 6672 | -9/Recycling | Spotter reported a threat 6717 | -9/Recycling | Spotter reported a threat 6724 | -9/Recycling | Spotter reported a threat 6724 | -9/Recycling | Spotter reported a threat 6725 | -9/Recycling | Spotter reported a threat 6727 | -9/Recycling | Spotter reported a threat 6742 | -9/Recycling | Spotter reported a threat 6756 | -9/Recycling | Spotter reported a threat 6777 | -9/Recycling | Spotter reported a threat 6778 | -9/Recycling | Spotter reported a threat 6784 | -9/Recycling | Spotter reported a threat 6785 | -9/Recycling | Spotter reported a threat 6830 | -9/Recycling | Spotter reported a threat 6836 | -9/Recycling | Spotter reported a threat 6838 | -9/Recycling | Spotter reported a threat 6849 | -9/Recycling | Spotter reported a threat 7010 | -9/Recycling | Spotter reported a threat 7051 | -9/Recycling | Spotter reported a threat 7085 | -9/Recycling | Build established: Commander-Mutant 7104 | -9/Recycling | Spotter reported a threat 7177 | -9/Recycling | Spotter reported a threat 7187 | -9/Recycling | Crushed by falling debris 7198 | -9/Recycling | Crushed by falling debris 7199 | -9/Recycling | System corruption reached 10% 7229 | -9/Recycling | Lost 6 parts (2n3u1w) 7267 | -9/Recycling | Spotter reported a threat 7275 | -9/Recycling | Spotter reported a threat 7289 | -9/Recycling | Spotter reported a threat 7313 | -9/Recycling | Spotter reported a threat 7320 | -9/Recycling | Spotter reported a threat 7332 | -9/Recycling | Spotter reported a threat 7342 | -9/Recycling | Spotter reported a threat 7350 | -9/Recycling | Spotter reported a threat 7359 | -9/Recycling | Spotter reported a threat 7378 | -9/Recycling | Spotter reported a threat 7401 | -9/Recycling | Spotter reported a threat 7429 | -9/Recycling | Spotter reported a threat 7450 | -9/Recycling | Spotter reported a threat 7453 | -9/Recycling | Spotter reported a threat 7454 | -9/Recycling | Spotter reported a threat 7513 | -9/Recycling | Spotter reported a threat 7573 | -9/Recycling | Spotter reported a threat 7647 | -9/Recycling | Spotter reported a threat 7668 | -9/Recycling | Spotter reported a threat 7683 | -9/Recycling | Spotter reported a threat 7721 | -9/Recycling | Spotter reported a threat 7724 | -9/Recycling | Spotter reported a threat 7734 | -9/Recycling | Spotter reported a threat 7790 | -9/Recycling | Spotter reported a threat 7790 | -9/Recycling | Spotter reported a threat 7793 | -9/Recycling | Spotter reported a threat 7978 | -9/Recycling | Spotter reported a threat 8039 | -9/Recycling | Spotter reported a threat 8042 | -9/Recycling | Spotter reported a threat 8047 | -9/Recycling | Spotter reported a threat 8085 | -9/Recycling | Spotter reported a threat 8089 | -9/Recycling | Spotter reported a threat 8100 | -9/Recycling | Spotter reported a threat 8139 | -9/Recycling | Spotter reported a threat 8140 | -9/Recycling | Spotter reported a threat 8140 | -9/Recycling | Spotter reported a threat 8153 | -9/Recycling | Spotter reported a threat 8227 | -9/Recycling | Spotter reported a threat 8227 | -9/Recycling | Spotter reported a threat 8228 | -9/Recycling | Spotter reported a threat 8228 | -9/Recycling | Spotter reported a threat 8274 | -9/Recycling | Spotter reported a threat 8276 | -9/Recycling | Spotter reported a threat 8280 | -9/Recycling | Spotter reported a threat 8317 | -9/Recycling | Spotter reported a threat 8317 | -9/Recycling | Spotter reported a threat 8317 | -9/Recycling | Spotter reported a threat 8329 | -9/Recycling | Spotter reported a threat 8369 | -9/Recycling | Spotter reported a threat 8369 | -9/Recycling | Spotter reported a threat 8370 | -9/Recycling | Spotter reported a threat 8416 | -9/Recycling | Spotter reported a threat 8422 | -9/Recycling | Spotter reported a threat 8422 | -9/Recycling | Spotter reported a threat 8467 | -9/Recycling | Spotter reported a threat 8475 | -9/Recycling | Entered Factory 8475 | -7/Factory | Accompanied by 4 allies 8475 | -7/Factory | Evolved 4 slots: Utility x4 8765 | -7/Factory | Discovered new exit (range 5) 8838 | -7/Factory | Build established: Mutant 8861 | -7/Factory | Self-destructed Last Messages --------------- 08528_ ALERT: All DSF locations entering lockdown mode. 08533_ Slug penetrates Wall. 08568_ Gatling Laser melted. 08568_ Y-54 Guardian destroyed. 08571_ Acquired 42 matter. 08573_ R-06 Scavenger collects Imp. Heat Sink. 08576_ Acquired Med. Armor Plating. 08649_ Acquired Recalibrator. 08725_ ALERT: Rogue bot located, Programmers report to Factory Zone 6B. 08765_ EXIT=FOUND 08831_ Savior 2a destroyed. 08839_ Hrd. Light Armor Plating destroyed. 08845_ Lgt. Treads destroyed. 08852_ P-60 Hacker suffers critical hit (Burn). 08855_ Destroyed Gravmag System. 08857_ P-60 Hacker heat short circuits Mic. Nuclear Core. 08857_ Ion Engine destroyed. 08858_ Remote Datajack melted. 08858_ Shock Rifle melted. 08858_ P-60 Hacker destroyed. Map ----- +----------------------------------------------------+ | ????????????????????????????? | | ????????????????????????????? | | ????????????????????????????? | | ????????????????????????????? | | ????????????????????????????? | | ????????????????????????????? | | ????????????????????????????? | | ????????????????????????????? | | ????????????????????????????? | | ????????????????????????????? | | ????????????????????????????? | | ????????????????????????????? | | ???#########+###????????????? | | ???# ?????????????? | | ???# ??????????????? | | ???# ???????????????? | | ???# """ """ ? ????????????? | | ???# """ """ #????????????? | | ???# """ """ #????????????? | | ???# #????????????? | | ???# """ """ #????????????? | | ???# """ """ #????????????? | | ???# """ """ #????????????? | | ???# ! #????????????? | | ???#!% #????????????? | | ???#@* ##### #????????????? | | ???# #?????? #????????????? | | ???# #????????????????????? | | ???###%#????????????????????? | | ?????#=#????????????????????? | | ?????# #????????????????????? | | ?????# #????????????????????? | | ?????# #????????????????????? | | ????##+#####????????????????? | | ????# #????????????????? | | ????# #????????????????? | | ????# #????????????????? | | ????# < #????????????????? | | ????# #????????????????? | | ????# #????????????????? | | ????######+######## #???????? | | ?????????# +?? | | ?????????# ##########???????? | | ?????????# #????????????????? | | ?????????# #????????????????? | | ?????????# #????????????????? | | ?????????# #????????????????? | | ?????????# #????????????????? | | ?????????# #????????????????? | | ??######## #????????????????? | +----------------------------------------------------+ Best States ------------- Heat Dissipation 48 Energy Generation 12 Energy Capacity 265 Matter Stores 300 Matter Capacity 300 Sight Range 20 Robot Scan Range 20 Terrain Scan Density 10 ECM Strength 1 Armor Coverage 300 Evasion (%) 40 Recoil Reduction 2 Authchip Count 2 Item Schematics ----------------- None Robot Schematics ------------------ M-13 Machinist | -9/Recycling | Hacked Fabricated ------------ Nothing Alien Tech Used ----------------- None Achievements -------------- Close Call Challenges ------------ None Game ------ Seed HugeDisruptionCharger Manual? 0 Play Time 01:11:29 Cumulative 33.0 hours Start 2022.05.09 @ 19:10:55 End 2022.05.09 @ 20:23:36 Sessions 1 Manual Loads 0 Difficulty Rogue Special Mode None Game No. 10 Rogue 9 Adventurer 0 Explorer 1 Win Type - Total 0 Types 0/0/0/0/0/0/0/0/0 Lore% 16 Gallery% 28 Achievement% 32 Wizard Run 0 Options --------- ASCII 0 Keyboard 0 Movement Numpad Keybinds 0 Fullscreen 1 Font 18/SmallcapsGlow Map View 76x50 Tactical HUD 1 Map Filters NONE Filters NONE Steam 1 RUN: b1b45253-9cdb-49f8-b930-4bf1de2c3d00